Cogmind - Beta 16.1 @@@ ROGUE MODE // 2026.03.11 @ 12:30:50 Player: Ragnakor Result: Smashed by cave-in Performance ------------- Evolutions (0) 0 Regions Visited (1) 200 Robots Destroyed (12) 60 Value Destroyed (187) 187 Prototype IDs (1) 20 Alien Tech Used (0) 0 Bonus (0) 0 TOTAL SCORE: 467 Bonus ------- None Cogmind --------- Core Integrity 0/250 Matter 300/300 Energy 230/250 System Corruption 1% Temperature Cool (20) Movement Walking (190) Ox1 Location -10/Materials Parts ------- > --- POWER (1) -------- Ion Engine > --- PROPULSION (2) --- Aluminum Leg > --- UTILITY (2) ------ Small Storage Unit Visual Processing Unit > --- WEAPON (2) ------- Improved EM Shotgun Improved EM Shotgun > --- INVENTORY (8) ---- Ion Engine Aluminum Leg Aluminum Leg Terrain Scan Processor Light EM Pulse Cannon Light EM Pulse Cannon Light EM Pulse Cannon Datajack Peak State ------------ > --- POWER ------------ Ion Engine > --- PROPULSION ------- Aluminum Leg Aluminum Leg > --- UTILITY ---------- Small Storage Unit Visual Processing Unit > --- WEAPON ----------- Improved EM Shotgun Improved EM Shotgun > --- INVENTORY -------- Ion Engine Terrain Scan Processor Seismic Detector Beam Rifle Beam Rifle Beam Rifle [Rating: 13] Favorites ----------- Power Ion Engine Engine Ion Engine Propulsion Aluminum Leg Leg Aluminum Leg Utility Small Storage Unit Device Seismic Detector Storage Small Storage Unit Processor Visual Processing Unit Weapon Improved EM Shotgun Energy Gun Improved EM Shotgun Ballistic Gun Light Assault Rifle Build | -11 -10 ------- Run | Yrd Mat Slots Evolved . | . . Power . | . . Propulsion . | . . Utility . | . . Weapon . | . . Parts Attached 12 | 8 4 Power 1 | 1 . Engine 1 | 1 . Core . | . . Reactor . | . . Propulsion 2 | 2 . Treads . | . . Leg 2 | 2 . Wheel . | . . Hover . | . . Flight . | . . Utility 3 | 2 1 Device 1 | 1 . Storage 1 | 1 . Processor 1 | . 1 Hackware . | . . Protection . | . . Artifact . | . . Weapon 6 | 3 3 Energy Gun 4 | 1 3 Energy Cannon . | . . Ballistic Gun 2 | 2 . Ballistic Cannon . | . . Launcher . | . . Special Weapon . | . . Impact Weapon . | . . Slashing Weapon . | . . Piercing Weapon . | . . Special Melee Weapon . | . . Unidentified Prototypes 1 | . 1 Parts Lost 1 | . 1 Power . | . . Propulsion 1 | . 1 Utility . | . . Weapon . | . . Highest Loss Streak 1 | . 1 To Critical Strikes . | . . Average Backups 5 | 2 6 Power . | . 1 Propulsion . | . 1 Utility 1 | . 1 Weapon 2 | . 2 Tool/Special . | . . Unused Backups 12 | . 12 Power 1 | . 1 Propulsion 2 | . 2 Utility 2 | . 2 Weapon 7 | . 7 Tool/Special . | . . Average Slot Usage (%) 100 | . 100 Engine 14 | . 14 Leg 28 | . 28 Device 5 | . 5 Storage 14 | . 14 Processor 8 | . 8 Energy Gun 25 | . 25 Ballistic Gun 2 | . 2 Peak Build Rating 13 | 7 13 Average Rating 10 | 5 12 On Entrance 3 | . 7 Avg Prop Armor Cover (%) . | . . Naked Turns . | . . Heaviest Build 17 | 14 17 Greatest Support 20 | 20 20 Greatest Overweight (x) 2 | 2 . Average Overweight (x) . | . . Largest Inventory Capacity 8 | 8 8 Average Capacity 7 | 7 8 Most Carried 8 | 3 8 Average Carried 5 | 2 6 Final Capacity 8 | 8 8 Final Carried 8 | 3 8 Class Distribution -------------------- 100% | Mutant Dominant Class ---------------- Mutant | -10/Materials Resources | -11 -10 ----------- Run | Yrd Mat Matter Collected 402 | 317 85 Remotely . | . . Salvage Created 409 | 171 238 Parts 29 | 12 17 Haulers Intercepted 1 | . 1 Recyclers Shooed 1 | 1 . Parts Field Recycled . | . . Retrieved Matter . | . . Parts Self-Destructed . | . . Prevented . | . . Parts Restored . | . . Kills | -11 -10 ------- Run | Yrd Mat Combat Hostiles Destroyed 3 | . 3 Guns 3 | . 3 Classes Destroyed 5 | 2 3 Tunneler 5 | 5 . Hauler 1 | . 1 Recycler 1 | 1 . Watcher 2 | . 2 Grunt 3 | . 3 Best Kill Streak 4 | 4 2 Combat Bots Only 2 | . 2 Max Kills in Single Turn 1 | 1 1 Gunslinging . | . . Exploded . | . . Melee . | . . Uniques/NPCs Destroyed . | . . Combat | -11 -10 -------- Run | Yrd Mat Hostile Shots Fired 5 | . 5 Missed 1 | . 1 Hits 4 | . 4 Projectile 4 | . 4 Damage Taken 518 | . 518 Core 254 | . 254 Absorbed by Shields . | . . Core Remaining (%) 100 | 100 . Volleys Fired 27 | 18 9 Largest 2 | 2 2 Hottest 90 | 40 90 Shots Fired 54 | 36 18 Gun 54 | 36 18 Cannon . | . . Launcher . | . . Special . | . . Kinetic 36 | 36 . Thermal . | . . Explosive . | . . Electromagnetic 18 | . 18 Robot Hit Streak 7 | 7 7 Robot Miss Streak 4 | 3 4 Penetration Max . | . . Secondary Targets . | . . Shots Hit Robots 33 | 20 13 Core Hits 18 | 8 10 Critical Kills 1 | 1 . Critical Parts Destroyed 1 | 1 . Critical Strikes 2 | 2 . Destroy 2 | 2 . Melee Attacks . | . . Impact . | . . Slashing . | . . Piercing . | . . Sneak Attacks . | . . Combat Hostiles . | . . Follow-up Attacks . | . . Damage Inflicted 479 | 218 261 Guns 479 | 218 261 Cannons . | . . Explosions . | . . Melee . | . . Ramming . | . . Kinetic 218 | 218 . Thermal . | . . Explosive . | . . Electromagnetic 261 | . 261 Impact . | . . Slashing . | . . Piercing . | . . Highest Corruption . | . . Average Corruption . | . . Corruption Purged . | . . Corruption Blocked . | . . Overload Shots . | . . Overflow Damage . | . . Projectiles . | . . Explosions . | . . Melee . | . . Knockbacks . | . . Impact . | . . Kinetic . | . . Secondary . | . . Self-Inflicted Damage 86 | . 86 Shots 1 | . 1 Rammed . | . . Targets Rammed . | . . Kicked . | . . Crushed . | . . Highest Temperature 349 | . 349 Average Temperature 79 | . 79 Received Heat Transfer 24 | . 24 Siege Activations . | . . Martial Activations . | . . Shielding Activations . | . . Robots Disrupted . | . . Combat Hostiles . | . . Robots Corrupted . | . . Combat Hostiles . | . . Parts Fried 1 | . 1 Impact Corruptions . | . . Robots Melted . | . . Combat Hostiles . | . . Parts Melted . | . . Heat Transferred . | . . Parts Sabotaged . | . . Parts Stolen . | . . Parts Stripped . | . . Power Chain Reactions . | . . Alert | -11 -10 ------- Run | Yrd Mat Maximum Alert Level . | . . Low Security (%) 100 | 100 100 Level 1 . | . . Level 2 . | . . Level 3 . | . . Level 4 . | . . Level 5 . | . . High Security . | . . Max Security . | . . Peak Influence 52 | 15 52 Initial . | . . Average 10 | 3 13 Influence Increases 192 | 30 162 Destroy 0b10 Robot/C 60 | . 60 Destroy 0b10 Robot/NC 45 | 30 15 Destroy Leader 6 | . 6 Successful Hack 26 | . 26 Disable Machine 15 | . 15 Destroy Structure 25 | . 25 Lose Combat Pursuer 15 | . 15 Influence Decreases 150 | 30 120 Time Decay 140 | 30 110 Lost Part 10 | . 10 Squads Dispatched . | . . Investigation . | . . Extermination . | . . Reinforcement . | . . Assault . | . . Garrison . | . . Intercept . | . . Searches Triggered . | . . Construction Impeded . | . . Haulers Reinforced . | . . Active Scanning Responses . | . . Cargo Convoy Interrupts . | . . Stealth | -11 -10 --------- Run | Yrd Mat Distress Signals 2 | . 2 Communications Jammed . | . . Distress Signals . | . . Times Spotted 8 | . 8 Peak Tracking Total 4 | . 4 Tactical Retreats 1 | . 1 Traps | -11 -10 ------- Run | Yrd Mat Traps Triggered 1 | . 1 Indirectly . | . . Trap Hack Attempts . | . . Triggered . | . . Disarmed . | . . Reprogrammed . | . . Reused . | . . Traps Extracted . | . . Installed . | . . Triggered . | . . Machines | -11 -10 ---------- Run | Yrd Mat Machines Disabled 1 | . 1 Max in Single Turn 1 | . 1 Machines Repaired . | . . Machines Dismantled . | . . Machines Sabotaged . | . . Overloaded Fab Kills . | . . Hacking | -11 -10 --------- Run | Yrd Mat Machines Accessed 4 | . 4 Terminals 4 | . 4 Fabricators . | . . Repair Stations . | . . Recycling Units . | . . Scanalyzers . | . . Garrison Access . | . . Total Hacks 9 | . 9 Successful 4 | . 4 Failed 5 | . 5 Catastrophic 4 | . 4 Database Lockouts . | . . Manual . | . . Terminals 9 | . 9 Fabricators . | . . Repair Stations . | . . Recycling Units . | . . Scanalyzers . | . . Garrison Access . | . . Terminal Hacks 4 | . 4 Branch Access Points 1 | . 1 Terminal Index 1 | . 1 Registered Components 1 | . 1 Zone Layout 1 | . 1 Fabricator Hacks . | . . Repair Station Hacks . | . . Recycling Unit Hacks . | . . Scanalyzer . | . . Garrison Access Hacks . | . . Unauthorized Hacks . | . . Terminals . | . . Fabricators . | . . Repair Stations . | . . Recycling Units . | . . Scanalyzers . | . . Garrison Access . | . . Data Cores Recovered . | . . Used . | . . Hacking Detections 3 | . 3 Full Trace Events . | . . Feedback Events . | . . Feedback Blocked . | . . Robot Schematics Acquired . | . . Robots Built . | . . Authchips . | . . Time . | . . Total Robot Build Rating . | . . Part Schematics Acquired . | . . Parts Built . | . . Authchips . | . . Time . | . . Total Part Build Rating . | . . Part Studies Acquired . | . . Parts Repaired . | . . Time . | . . Parts Recycled . | . . Recycled Matter . | . . Retrieved Matter . | . . Retrieved Components . | . . Parts Scanalyzed . | . . Part Schematics Acquired . | . . Parts Damaged . | . . Bothacking | -11 -10 ------------ Run | Yrd Mat Used RIF Installer . | . . Robots Hacked . | . . Non-combat . | . . Combat . | . . Robot Hacks Applied . | . . Relay Couplers Released . | . . Fabnet Peak Effective % . | . . Robots Rewired . | . . Allies Hacked . | . . Hacks Repelled . | . . Allies | -11 -10 -------- Run | Yrd Mat Total Allies . | . . Largest Group . | . . Highest-Rated Group . | . . Highest-Rated Ally . | . . Total Orders . | . . Ally Attacks . | . . Total Damage . | . . Kills . | . . Allies Corrupted . | . . Allies Melted . | . . Intel | -11 -10 ------- Run | Yrd Mat Active Infowar (turns) 303 | 9 294 Optics 198 | . 198 Seismic 105 | 9 96 Robot Analysis Total . | . . Derelict Logs Recovered . | . . Drone Launches . | . . Drone Recoveries . | . . Exploration | -11 -10 ------------- Run | Yrd Mat Turns Passed 436 | 143 293 Spaces Moved 259 | 68 191 Core 12 | 12 . Treads . | . . Legs 247 | 56 191 Wheels . | . . Hover . | . . Flight . | . . Fastest Speed 50 | 50 120 Average Speed 118 | 115 120 Slowest Speed 150 | 150 120 Overloaded Moves . | . . Propulsion Burnouts . | . . Robots Hopped . | . . Potential Cave-ins . | . . Cave-ins Triggered 1 | . 1 Exploration Rate (%) 16 | 4 28 Regions Visited 1 Branch Regions . Pre-discovered Areas . | . . Known Exits Taken . | . . Unknown Exits Taken 1 | 1 . Scrap Searched . | . . Spaces Dug . | . . Terrain Destroyed 24 | . 24 Melee . | . . Projectile . | . . AOE 24 | . 24 Terrain Rammed . | . . Walls Destroyed . | . . Machines Disabled . | . . Actions | -11 -10 --------- Run | Yrd Mat Total 335 | 96 239 Wait 18 | . 18 Move 258 | 67 191 Hop . | . . Pick Up 13 | 2 11 Fast Attach 7 | 7 . Attach . | . . Detach . | . . Swap 6 | 2 4 Drop 6 | . 6 Fire 27 | 18 9 Melee . | . . Ram . | . . Kick . | . . Crush . | . . Escape Stasis . | . . Rewire . | . . Trap . | . . Miscellaneous . | . . Route ------- -11/Scrapyard -10/Materials (discovered 1 exit: *Min) History --------- Turn | Location | Event 30 | -11/Scrapyard | Discovered new exit (range 15) 144 | -11/Scrapyard | Entered Materials 268 | -10/Materials | Discovered new exit (range 7) 318 | -10/Materials | Build established: Mutant 432 | -10/Materials | Identified exit to Mines 438 | -10/Materials | Crushed by falling debris 438 | -10/Materials | Smashed by cave-in Last Messages --------------- 00426_ Acquired Datajack. 00429_ Fusion Modulator explodes. 00431_ U-05 Engineer builds a Door. 00432_ Connecting with Terminal... >>Index(Terminals) Found 8 terminals. Downloaded coordinate data. >>Access(Branch) Found 1 branch access point: (37,38) Mines Map updated. 00433_ U-05 Engineer builds a Wall. 00433_ U-05 Engineer lays Concrete. 00435_ U-05 Engineer builds a Wall. 00436_ Door malfunctions. 00436_ U-05 Engineer builds a Wall. 00438_ The unstable cave ceiling collapses. 00438_ Crushed by falling debris. 00438_ Aluminum Leg destroyed. 00438_ System corrupted by crushing effect (+1). Map ----- +----------------------------------------------------+ | ?????????????????????????????????????????????????? | | ?????????????????????????????????????????????????? | | ?????????????????????????????????????????????????? | | ?????????????????????????????????????????????????? | | ?????????????????????????????????????????????????? | | ?????????????????????????????????????????????????? | | ?????????????????????????????????????????????????? | | ?????????????????????????????????????????????????? | | ?????????????????????????????????????????????????? | | ?????????????????????????????????????????????????? | | ?????????????????????????? ??????????????????????? | | ?????????????????????????? ??????????????????????? | | ?????????????????????????? ??????????????????????? | | ?????????????????????????? ??????????????????????? | | ?????????????????????????? ??????????????????????? | | ?????????????????????????? ??????????????????????? | | ?????????????????????????? ??????????????????????? | | ?????????????????????????? ??????????????????????? | | ?????????????????????????# #?????????????????????? | | ?????????????????????????# #?????????????????????? | | ????????????????########## #?????????????????????? | | ????????????????# T ## #?????########????????? | | ???????????????## ## #?????#[[ ][[#????????? | | ???????????????#; =] ;# #?????#[[ [[[#????????? | | ???????????????#; ] ;# #?????# [[ #????????? | | ??????????????#;;! =] ;@ ####??## #????????? | | ???????????# #* % ; r##### #????????? | | ???????? + u#= ; #[???????? | | ???? ## u; / " #????????? | | ????? ???# ; #u m #????????? | | ???????????# ; ; ##### #????????? | | ???????????# ; ;#w ####### ##########? | | ???????????+ ##;;##;### # # # #? | | =??????????# #""|"u""?# # / =+ " """ #? | | ???????????# ?# "|"!" ?# # # %# T """ #? | | ??????????####+## ## # %=# [# " """ #? | | ???????? # """ # # """ #? | | ???????? > + """ # # """ #? | | ???????? k % # """ # # #? | | ????????????## ## # ## # # % #? | | ????????????????######### ######## ##########? | | ????????????????????????# #????####+#####?=????? | | ????????????????????????# #????# #??????? | | ????????????????????????# #????# """ #??????? | | ????????????????????????# #????# """ #??????? | | ????????????????????????# #????# """ #??????? | | ????????????????????????# #????# #??????? | | ????????????????????????# #????# """ #??????? | | ???????????????????????## ##???# """ !#??????? | | ???????????????????????## ##???# """ #??????? | +----------------------------------------------------+ Best States ------------- Heat Dissipation 25 Energy Generation 10 Energy Capacity 250 Matter Stores 300 Matter Capacity 300 Sight Range 18 Terrain Scan Density 10 Evasion (%) 55 Item Schematics ----------------- None Robot Schematics ------------------ None Fabricated ------------ Nothing Repaired ---------- Nothing Studied --------- None Alien Tech Used ----------------- None Achievements -------------- None Challenges ------------ None Game ------ Seed CompanionTrapSpecial Manual? 0 Play Time 00:04:42 Cumulative 19.1 hours Start 2026.03.11 @ 12:25:54 End 2026.03.11 @ 12:30:50 Sessions 1 Manual Loads 0 Difficulty Rogue Special Mode None Game No. 37 Rogue 37 Adventurer 0 Explorer 0 Win Type - Total 0 Types 0/0/0/0/0/0/0/0/0/0 Lore% 22 Gallery% 19 Achievement% 16 Wizard Run 0 Options --------- Layout 1 ASCII 0 Keyboard 0 Movement Numpad Keybinds 0 Fullscreen 1 Font 24/Smallcaps Map View 50x35 Zoom Use 0% Tactical HUD 1 Map Filters NONE Filters NONE Steam 1 RUN: fac18d49-2a25-4ded-b050-458c8888547e